Cogmind - Beta 10.1 @@@ ROGUE MODE // 2020.10.02 @ 19:40:55 Player: Enzo Result: Destroyed by L-41 Fighter with Axe Performance ------------- Evolutions (4) 2000 Regions Visited (18) 3600 Robots Destroyed (228) 1140 Value Destroyed (8093) 8093 Prototype IDs (15) 300 Alien Tech Used (0) 0 Bonus (4113) 4113 TOTAL SCORE: 19246 Bonus ------- High Alert Combat Kills 179 Follower Combat Kills 1195 Entered Garrisons 1000 Used RIF Installer 2500 Friendly Fire -761 Cogmind --------- Core Integrity 0/850 Matter 300/300 Energy 97/100 System Corruption 5% Temperature Cool (0) Movement Core (150) Ox2 Location -6/Extension Parts ------- > --- POWER (1) -------- (None) > --- PROPULSION (2) --- (None) > --- UTILITY (9) ------ Structural Scanner Advanced Terrain Scan Processor > --- WEAPON (3) ------- Powered Hammer Ripper > --- INVENTORY (4) ---- Relay Coupler [NC] (22) Relay Coupler [Duelist] (28) Relay Coupler [Specialist] (21) Relay Coupler [Hunter] (15) Peak State ------------ > --- POWER ------------ Heavy Deuterium Engine > --- PROPULSION ------- Improved Medium Treads Improved Medium Treads > --- UTILITY ---------- Large Storage Unit Improved Terrain Scanner Makeshift Terrain Scan Processor Advanced Targeting Computer Improved Shield Generator Relay Coupler [NC] Relay Coupler [Sentry] Relay Coupler [Hunter] Relay Coupler [Behemoth] > --- WEAPON ----------- Mini Assault Cannon Magnetic Acceleration Cannon Remote Datajack > --- INVENTORY -------- Triangulator Relay Coupler [NC] Relay Coupler [Duelist] Relay Coupler [Specialist] Relay Coupler [Hunter] Relay Coupler [Hunter] Improved EM Pulse Cannon Proton Cannon Heavy Rocket Launcher Heavy Rocket Launcher [Rating: 63] Favorites ----------- Power Heavy Deuterium Engine Engine Heavy Deuterium Engine Power Core Light Nuclear Core Propulsion Light Treads Treads Light Treads Leg Aluminum Leg Wheel Compact Wheel Utility Large Storage Unit Device Improved Terrain Scanner Storage Large Storage Unit Processor Makeshift Terrain Scan Processor Hackware Relay Coupler [Hunter] Protection Layered Light Armor Plating Weapon Mini Assault Cannon Energy Gun Particle Gun Energy Cannon Advanced Beam Cannon Ballistic Gun Assault Rifle Ballistic Cannon Mini Assault Cannon Launcher Heavy Rocket Launcher Special Weapon Remote Datajack Impact Weapon Powered Hammer Slashing Weapon Makeshift Sword Special Melee Weapon Improved Datajack Build | -11 -10 -10 -9 -9 -9 -8 -8 -8 -8 -8 -7 -7 -7 -7 -6 -6 -6 -6 ------- Run | Scr Mat Min Mat Min Exi Min Mat Gar Mat Gar Fac Gar Fac Gar Fac Gar Fac Ext Slots Evolved 8 | . . . 2 . . . 2 . . . 2 . . . 2 . . . Power . | . . . . . . . . . . . . . . . . . . . Propulsion . | . . . . . . . . . . . . . . . . . . . Utility 7 | . . . 2 . . . 1 . . . 2 . . . 2 . . . Weapon 1 | . . . . . . . 1 . . . . . . . . . . . Parts Attached 226 | 8 5 2 21 20 6 . 24 14 . 10 17 7 8 10 22 13 7 32 Power 23 | 1 . . 2 2 1 . 2 3 . 1 2 . 2 . 1 1 1 4 Engine 15 | 1 . . 1 2 1 . 1 . . . 2 . 2 . 1 1 . 3 Core 8 | . . . 1 . . . 1 3 . 1 . . . . . . 1 1 Reactor . | . . . . . . . . . . . . . . . . . . . Propulsion 32 | 2 2 . 1 2 2 . 4 1 . 2 2 . 1 2 4 1 . 6 Treads 28 | 2 2 . 1 1 2 . 4 1 . 2 2 . 1 2 4 1 . 3 Leg 2 | . . . . 1 . . . . . . . . . . . . . 1 Wheel 2 | . . . . . . . . . . . . . . . . . . 2 Hover . | . . . . . . . . . . . . . . . . . . . Flight . | . . . . . . . . . . . . . . . . . . . Utility 68 | 2 1 . 7 5 2 . 5 4 . 3 4 5 4 7 8 3 . 8 Device 34 | 1 . . 5 4 1 . 2 2 . . 2 1 3 2 3 2 . 6 Storage 6 | 1 1 . . . . . 2 . . . . . . . 1 . . 1 Processor 5 | . . . 1 1 1 . 1 . . . . . . . . . . 1 Hackware 22 | . . . 1 . . . . 2 . 3 2 4 1 5 3 1 . . Protection 1 | . . . . . . . . . . . . . . . 1 . . . Artifact . | . . . . . . . . . . . . . . . . . . . Weapon 103 | 3 2 2 11 11 1 . 13 6 . 4 9 2 1 1 9 8 6 14 Energy Gun 10 | 1 1 . 4 . . . . . . . 2 . . . 1 . . 1 Energy Cannon 25 | . . . 2 5 . . 9 3 . . . . . . 2 2 1 1 Ballistic Gun 12 | 2 1 . 1 . . . 1 . . 2 2 . . . . . . 3 Ballistic Cannon 15 | . . 1 2 . . . . . . . 2 1 . . 4 1 2 2 Launcher 23 | . . 1 2 5 . . 2 2 . 2 1 1 . . . 3 2 2 Special Weapon 11 | . . . . 1 . . 1 1 . . 2 . 1 1 2 2 . . Impact Weapon 2 | . . . . . . . . . . . . . . . . . . 2 Slashing Weapon 2 | . . . . . 1 . . . . . . . . . . . . 1 Piercing Weapon . | . . . . . . . . . . . . . . . . . . . Special Melee Weapon 3 | . . . . . . . . . . . . . . . . . 1 2 Unidentified Prototypes 9 | . . . 2 . . . 1 . . . 4 . . . 2 . . . Parts Lost 59 | . 1 1 . 6 . . 3 3 . 3 . 1 1 5 . 4 . 31 Power 6 | . . . . 1 . . . 1 . . . . . . . . . 4 Propulsion 11 | . . . . 2 . . . 1 . . . . . 1 . 1 . 6 Utility 23 | . . 1 . 3 . . 1 1 . . . . 1 3 . 2 . 11 Weapon 19 | . 1 . . . . . 2 . . 3 . 1 . 1 . 1 . 10 Highest Loss Streak 15 | . 1 1 . 3 . . 2 3 . 3 . 1 1 4 . 2 . 15 Average Slot Usage (%) 95 | . 98 97 96 98 91 100 98 97 100 99 98 99 98 95 98 96 99 80 Engine 6 | . 14 14 7 10 11 11 6 1 . . 5 7 6 7 6 6 1 2 Core 1 | . . . 3 . . . 2 7 9 9 1 . . . . . 4 2 Treads 16 | . 27 28 22 15 17 22 18 17 18 18 15 15 15 14 12 12 13 8 Device 14 | . 14 11 16 10 14 22 21 14 . . 10 14 13 7 15 16 20 20 Storage 8 | . 14 14 11 11 11 11 9 9 9 9 7 7 7 7 6 6 6 4 Processor 11 | . . . 10 11 11 11 14 18 18 18 15 15 15 15 13 13 13 11 Hackware 10 | . . . 3 10 . . . 2 18 18 18 15 15 19 22 22 20 9 Energy Gun 1 | . 7 14 8 . . . . . . . . . . . . . . . Energy Cannon 6 | . . . 3 18 11 11 17 17 18 1 . . . . 3 3 6 1 Ballistic Gun 2 | . 19 8 . . . . . . . 15 9 . . . . . . . Ballistic Cannon 5 | . . 2 9 . . . . . . . 5 13 15 15 8 11 10 5 Launcher 1 | . . 2 . 3 5 . . . . . . 1 . . . 1 1 2 Special Weapon 2 | . . . . . . . . 1 9 9 6 7 6 6 5 1 . . Slashing Weapon 1 | . . . . . 5 11 9 7 . . . . . . . . . 1 Naked Turns . | . . . . . . . . . . . . . . . . . . . Heaviest Build 53 | 14 27 28 33 34 29 29 36 35 32 32 40 40 40 40 49 53 52 48 Greatest Support 60 | 40 40 40 40 40 40 40 44 44 42 42 40 40 40 40 60 60 50 50 Greatest Overweight (x) 15 | . . . . 1 1 . . 1 . . . . 1 1 1 1 1 15 Average Overweight (x) . | . . . . . . . . . . . . . . . . . . . Largest Inventory Capacity 12 | 6 10 10 10 10 10 10 12 10 10 10 10 10 10 10 10 10 10 10 Average Capacity 9 | 5 9 10 10 10 10 10 10 10 10 10 10 10 10 10 10 10 10 8 Most Carried 10 | 2 7 7 10 10 10 10 10 10 10 10 10 10 10 10 10 10 10 10 Average Carried 8 | . 5 7 8 9 9 10 8 9 10 7 9 8 9 8 9 8 10 6 Final Capacity 10 | 6 10 10 10 10 10 10 10 10 10 10 10 10 10 10 10 10 10 4 Final Carried 10 | 2 7 7 10 9 10 10 10 10 10 10 9 10 9 9 10 10 10 4 Class Distribution -------------------- 36% | Mutant 20% | Scavenger-Mutant 13% | Bothacker-Mutant 10% | Botlord-Mutant 10% | Bothacker-Skirmisher Dominant Class ---------------- Mutant | -10/Materials Mutant | -10/Mines Scavenger-Mutant | -9/Materials Scavenger-Mutant | -9/Mines Mutant | -9/Exiles Mutant | -8/Mines Mutant | -8/Materials Mutant | -8/Garrison Bothacker-Mutant | -8/Materials Scavenger-Mutant | -8/Garrison Bothacker-Mutant | -7/Factory Bothacker-Skirmisher | -7/Garrison Bothacker-Skirmisher | -7/Factory Bothacker-Mutant | -7/Garrison Botlord-Mutant | -6/Factory Mutant | -6/Garrison Mutant | -6/Factory Scavenger-Mutant | -6/Extension Resources | -11 -10 -10 -9 -9 -9 -8 -8 -8 -8 -8 -7 -7 -7 -7 -6 -6 -6 -6 ----------- Run | Scr Mat Min Mat Min Exi Min Mat Gar Mat Gar Fac Gar Fac Gar Fac Gar Fac Ext Matter Collected 5632 | 310 234 49 399 412 129 . 307 216 5 153 335 352 282 563 285 660 105 836 Remotely . | . . . . . . . . . . . . . . . . . . . Salvage Created 6644 | 169 463 72 311 1088 268 . 790 326 101 162 192 256 75 301 401 582 218 869 Parts 408 | 10 38 10 26 90 6 . 54 27 8 11 12 13 2 12 8 25 14 42 Haulers Intercepted 9 | . 1 . 2 . . . 3 . . . 1 . 1 . 1 . . . Recyclers Shooed 1 | . 1 . . . . . . . . . . . . . . . . . Parts Field Recycled . | . . . . . . . . . . . . . . . . . . . Retrieved Matter . | . . . . . . . . . . . . . . . . . . . Parts Self-Destructed . | . . . . . . . . . . . . . . . . . . . Prevented . | . . . . . . . . . . . . . . . . . . . Kills | -11 -10 -10 -9 -9 -9 -8 -8 -8 -8 -8 -7 -7 -7 -7 -6 -6 -6 -6 ------- Run | Scr Mat Min Mat Min Exi Min Mat Gar Mat Gar Fac Gar Fac Gar Fac Gar Fac Ext Combat Hostiles Destroyed 166 | . 14 2 6 42 1 . 16 16 . 4 2 9 2 10 4 16 5 17 Melee 13 | . . . . . 1 . 4 5 . . . . . . . . . 3 Guns 13 | . 9 . 2 . . . . . . 1 1 . . . . . . . Cannons 71 | . . . 2 15 . . 7 6 . . 1 6 2 10 4 9 2 7 AOE 69 | . 5 2 2 27 . . 5 5 . 3 . 3 . . . 7 3 7 Classes Destroyed 16 | 2 6 . 1 2 . . 2 . . . 1 . . . . . . 2 Worker 7 | . 2 . 1 3 . . . . . . 1 . . . . . . . Builder 10 | . 1 2 1 1 . . 2 . . . . . . . . . . 3 Tunneler 17 | 4 . . 2 8 . . 1 . . . 1 . . . . . 1 . Hauler 9 | . 1 . 2 . . . 3 . . . 1 . 1 . 1 . . . Recycler 4 | 1 . . . 1 . . . . . . . . . . . . 1 1 Operator 6 | . . . 1 . . . 1 . 1 . . . 1 . . . 1 1 Watcher 4 | . 2 . . . . . 1 . 1 . . . . . . . . . Swarmer 51 | . 9 . . 13 . . 4 10 . . . 4 . 1 . 4 3 3 Grunt 90 | . 5 2 6 26 1 . 6 5 1 2 . 7 . 9 4 8 1 7 Brawler 1 | . . . . . . . . . . . . . . . . . . 1 Duelist 5 | . . . . 2 . . . 1 . 1 . . . . . 1 . . Sentry 13 | . . . . . . . 4 . . 1 1 . 1 . . 2 . 4 Hunter 3 | . . . . . . . 2 . . . . . . . . . . 1 Programmer 5 | . . . . . . . . . . . 1 . 1 . 1 1 1 . Behemoth 1 | . . . . . . . . . . . . . . . . . . 1 Assembled 1 | . . . . 1 . . . . . . . . . . . . . . Thug 1 | . . . . . . . . . . . . . . . . . . 1 Best Kill Streak 9 | 2 9 4 3 6 1 . 4 8 1 3 2 3 1 5 2 6 3 6 Combat Bots Only 8 | . 8 2 2 4 1 . 4 8 . 3 1 3 1 5 2 6 3 6 Max Kills in Single Turn 4 | 1 3 1 2 4 1 . 2 2 1 2 1 2 1 1 1 1 2 2 Gunslinging . | . . . . . . . . . . . . . . . . . . . Exploded 3 | . 2 1 2 3 . . 1 2 . 2 . 2 . . . 1 2 2 Melee 1 | . . . . . 1 . 1 1 . . . . . . . . . 1 Uniques/NPCs Destroyed . | . . . . . . . . . . . . . . . . . . . Combat | -11 -10 -10 -9 -9 -9 -8 -8 -8 -8 -8 -7 -7 -7 -7 -6 -6 -6 -6 -------- Run | Scr Mat Min Mat Min Exi Min Mat Gar Mat Gar Fac Gar Fac Gar Fac Gar Fac Ext Damage Taken 8344 | . 431 133 122 905 . . 524 550 15 176 44 266 169 1058 170 926 274 2581 Core 1478 | . 36 . 37 130 . . . 82 15 22 23 13 . 237 11 64 31 777 Absorbed by Shields 34 | . . . . . . . . . . . . . . . 14 20 . . Core Remaining (%) 76 | 100 . 85 . . . 58 . . . 78 . . . 61 . . . . Volleys Fired 499 | 10 57 9 38 69 . . 32 24 4 14 20 40 16 45 27 37 14 43 Largest 3 | 2 2 2 2 2 . . 2 2 2 2 2 2 2 2 3 3 3 3 Hottest 176 | 60 85 85 136 136 . . 136 136 136 56 96 96 96 96 166 176 176 176 Shots Fired 855 | 20 108 10 73 113 . . 54 40 7 15 30 54 32 79 45 66 30 79 Gun 180 | 20 108 2 23 . . . . . . 6 11 . . . 3 . . 7 Cannon 525 | . . . 46 82 . . 46 32 6 . 10 34 32 69 31 53 27 57 Launcher 87 | . . 8 4 28 . . 7 6 . 3 1 2 . . . 10 3 15 Special 63 | . . . . 3 . . 1 2 1 6 8 18 . 10 11 3 . . Kinetic 398 | 10 63 1 26 . . . . . . 6 20 34 32 69 23 45 14 55 Thermal 222 | . 4 1 43 85 . . 47 32 6 . 1 . . . 3 . . . Explosive 87 | . . 8 4 28 . . 7 6 . 3 1 2 . . . 10 3 15 Electromagnetic 89 | 10 41 . . . . . . . . . . . . . 8 8 13 9 Robot Hit Streak 40 | 6 6 6 6 9 . . 7 8 10 11 10 19 40 20 13 20 18 9 Robot Miss Streak 4 | 2 4 1 4 2 . . 4 1 . 1 1 2 1 2 1 1 2 2 Penetration Max 1 | . . . . . . . . . . . 1 . . . . . . . Secondary Targets 2 | . 2 . . . . . . . . . . . . . . . . . Max Gunslinging Chain 1 | . 1 . . . . . . . . . . . . . . . . . Shots Hit Robots 603 | 13 64 6 40 69 16 . 47 37 5 10 19 37 28 53 27 41 24 67 Core Hits 356 | 5 29 12 17 73 6 . 34 26 3 7 6 14 6 20 8 32 12 46 Critical Hits 34 | . . . 1 8 2 . 5 5 1 . 2 . 3 3 . 1 1 2 Critical Kills 9 | . . . . 2 . . 2 2 . . 1 . . . . 1 . 1 Critical Parts Destroyed 23 | . . . 1 6 2 . 1 3 1 . 1 . 3 3 . . 1 1 Melee Attacks 69 | . . . . . 16 . 17 14 . . . . . . . . . 22 Impact 10 | . . . . . . . . . . . . . . . . . . 10 Slashing 57 | . . . . . 16 . 17 14 . . . . . . . . . 10 Piercing . | . . . . . . . . . . . . . . . . . . . Sneak Attacks 10 | . . . . . 2 . 4 . . . . . . . . . . 4 Combat Hostiles 2 | . . . . . 2 . . . . . . . . . . . . . Follow-up Attacks 4 | . . . . . . . . . . . . . . . . . . 4 Damage Inflicted 21264 | 156 1098 480 904 3487 1686 . 1998 1304 102 232 382 768 812 1298 451 2360 987 2759 Guns 1501 | 156 813 24 234 . . . . . . 65 196 . . . . . . 13 Cannons 8318 | . . . 452 1044 . . 513 450 102 . 186 555 812 1298 446 879 574 1007 Explosions 7994 | . 285 452 218 2443 . . 717 583 . 167 . 213 . . . 1481 413 1022 Melee 3442 | . . . . . 1686 . 768 271 . . . . . . . . . 717 Ramming 9 | . . 4 . . . . . . . . . . . . 5 . . . Kinetic 6013 | 67 437 11 166 . . . . . . 65 382 555 812 1298 283 744 303 890 Thermal 3104 | . 317 13 520 1044 . . 513 450 102 . . . . . . 61 . 84 Explosive 7564 | . . 452 218 2443 . . 717 583 . 167 . 213 . . . 1420 413 938 Electromagnetic 1132 | 89 344 . . . . . . . . . . . . . 163 135 271 130 Impact 227 | . . . . . . . . . . . . . . . . . . 227 Slashing 3215 | . . . . . 1686 . 768 271 . . . . . . . . . 490 Piercing . | . . . . . . . . . . . . . . . . . . . Highest Corruption 5 | . . . . . . . . . . . . . . . . 1 2 5 Average Corruption 1 | . . . . . . . . . . . . . . . . 1 1 2 Corruption Purged . | . . . . . . . . . . . . . . . . . . . Effects 39 | . . . . . . . . . . . . . . . . 4 6 29 Message Errors 13 | . . . . . . . . . . . . . . . . 2 1 10 Matter Fused 2 | . . . . . . . . . . . . . . . . . . 2 Heat Flow Errors 5 | . . . . . . . . . . . . . . . . . 2 3 Energy Discharges 9 | . . . . . . . . . . . . . . . . 2 3 4 Data Loss (minor) 4 | . . . . . . . . . . . . . . . . . . 4 Data Loss (major) 2 | . . . . . . . . . . . . . . . . . . 2 Targeting Errors 4 | . . . . . . . . . . . . . . . . . . 4 Overload Shots . | . . . . . . . . . . . . . . . . . . . Overflow Damage 1212 | . 12 . 1 53 428 . 137 19 . . . 23 33 23 18 75 166 224 Projectiles 279 | . . . 1 . . . . 2 . . . 23 33 23 18 60 106 13 Explosions 188 | . 12 . . 53 . . 6 4 . . . . . . . 15 60 38 Melee 745 | . . . . . 428 . 131 13 . . . . . . . . . 173 Knockbacks 34 | . . . 1 . . . . . . . . 3 4 8 2 5 4 7 Impact . | . . . . . . . . . . . . . . . . . . . Kinetic 32 | . . . 1 . . . . . . . . 2 4 7 2 5 4 7 Secondary 2 | . . . . . . . . . . . . 1 . 1 . . . . Self-Inflicted Damage 290 | . 12 . . 100 . . . . . 44 . . . . . 97 . 37 Shots 14 | . 1 . . 5 . . . . . 1 . . . . . 6 . 1 Rammed 2 | . . 1 . . . . . . . . . . . . 1 . . . Targets Rammed 2 | . . 1 . . . . . . . . . . . . 1 . . . Kicked . | . . . . . . . . . . . . . . . . . . . Crushed . | . . . . . . . . . . . . . . . . . . . Highest Temperature 381 | . 75 24 273 381 . . 18 324 63 15 354 51 96 330 225 324 243 221 Average Temperature 73 | . 30 7 110 103 . . 9 104 35 6 66 14 31 80 59 80 63 73 Received Heat Transfer 2298 | . 174 75 69 270 . . 117 108 . 72 6 99 45 486 63 225 36 453 Effects 4 | . . . . 2 . . . 1 . . . . . 1 . . . . Energy Bleed 4 | . . . . 2 . . . 1 . . . . . 1 . . . . Siege Activations . | . . . . . . . . . . . . . . . . . . . Robots Corrupted 1 | . 1 . . . . . . . . . . . . . . . . . Combat Hostiles . | . . . . . . . . . . . . . . . . . . . Parts Fried 4 | . . . . . . . . . . . . . . . 2 . 2 . Impact Corruptions 2 | . . . . . . . . . . . . . . . . 2 . . Robots Melted . | . . . . . . . . . . . . . . . . . . . Combat Hostiles . | . . . . . . . . . . . . . . . . . . . Parts Melted 6 | . . . 1 1 . . 1 1 . . . 1 . . . . . 1 Heat Transferred 5445 | . 424 37 1073 1887 . . 925 814 185 . . . . . . 50 . 50 Parts Sabotaged . | . . . . . . . . . . . . . . . . . . . Parts Stolen . | . . . . . . . . . . . . . . . . . . . Parts Stripped . | . . . . . . . . . . . . . . . . . . . Power Chain Reactions 4 | . 3 . . . . . . . . . . . . . . 1 . . Missiles Intercepted . | . . . . . . . . . . . . . . . . . . . Alert | -11 -10 -10 -9 -9 -9 -8 -8 -8 -8 -8 -7 -7 -7 -7 -6 -6 -6 -6 ------- Run | Scr Mat Min Mat Min Exi Min Mat Gar Mat Gar Fac Gar Fac Gar Fac Gar Fac Ext Peak Influence 642 | 25 315 197 315 609 . . 342 615 384 461 278 460 642 381 279 490 311 230 Initial 299 | . 16 23 76 48 . . . 91 299 249 241 129 241 137 199 . 256 73 Average 201 | 11 108 46 191 173 . . 202 429 320 351 208 316 360 284 104 333 157 61 Maximum Alert Level 2 | . 1 . 1 2 . . 1 2 1 2 1 2 2 1 1 2 1 1 Low Security (%) 52 | 100 83 100 61 67 . 100 48 14 . . 36 11 11 25 71 17 66 88 Level 1 35 | . 16 . 38 17 . . 51 19 100 63 63 59 60 74 28 38 33 11 Level 2 12 | . . . . 15 . . . 66 . 36 . 29 28 . . 43 . . Level 3 . | . . . . . . . . . . . . . . . . . . . Level 4 . | . . . . . . . . . . . . . . . . . . . Level 5 . | . . . . . . . . . . . . . . . . . . . High Security . | . . . . . . . . . . . . . . . . . . . Max Security . | . . . . . . . . . . . . . . . . . . . Squads Dispatched 19 | . . . 2 . . . 2 . 1 . 3 . 3 . 4 . 2 2 Investigation 3 | . . . 1 . . . 1 . 1 . . . . . . . . . Extermination 5 | . . . . . . . . . . . 1 . 1 . 2 . 1 . Reinforcement 10 | . . . 1 . . . 1 . . . 1 . 2 . 2 . 1 2 Assault . | . . . . . . . . . . . . . . . . . . . Garrison 1 | . . . . . . . . . . . 1 . . . . . . . Intercept . | . . . . . . . . . . . . . . . . . . . Construction Impeded 1 | . . . . . . . . . . . . . . . . . . 1 Haulers Reinforced 2 | . . . . . . . . . . . 1 . . . 1 . . . Stealth | -11 -10 -10 -9 -9 -9 -8 -8 -8 -8 -8 -7 -7 -7 -7 -6 -6 -6 -6 --------- Run | Scr Mat Min Mat Min Exi Min Mat Gar Mat Gar Fac Gar Fac Gar Fac Gar Fac Ext Distress Signals 11 | . 3 . 1 2 . . 3 . 1 . . . . . . . . 1 Communications Jammed . | . . . . . . . . . . . . . . . . . . . Distress Signals . | . . . . . . . . . . . . . . . . . . . Times Spotted 296 | . 25 6 18 40 . . 23 23 3 10 8 28 9 25 17 25 5 31 Peak Tracking Total 13 | . 5 4 4 4 . . 4 5 2 4 3 8 3 13 5 6 4 7 Tactical Retreats 26 | . 4 . . . . . . 5 . 1 . 3 1 4 1 2 . 5 Traps | -11 -10 -10 -9 -9 -9 -8 -8 -8 -8 -8 -7 -7 -7 -7 -6 -6 -6 -6 ------- Run | Scr Mat Min Mat Min Exi Min Mat Gar Mat Gar Fac Gar Fac Gar Fac Gar Fac Ext Traps Triggered 5 | . . . . . . . . . . . . . 1 . . 4 . . Indirectly . | . . . . . . . . . . . . . . . . . . . Trap Hack Attempts . | . . . . . . . . . . . . . . . . . . . Triggered . | . . . . . . . . . . . . . . . . . . . Disarmed . | . . . . . . . . . . . . . . . . . . . Reprogrammed . | . . . . . . . . . . . . . . . . . . . Reused . | . . . . . . . . . . . . . . . . . . . Traps Extracted . | . . . . . . . . . . . . . . . . . . . Installed . | . . . . . . . . . . . . . . . . . . . Triggered . | . . . . . . . . . . . . . . . . . . . Machines | -11 -10 -10 -9 -9 -9 -8 -8 -8 -8 -8 -7 -7 -7 -7 -6 -6 -6 -6 ---------- Run | Scr Mat Min Mat Min Exi Min Mat Gar Mat Gar Fac Gar Fac Gar Fac Gar Fac Ext Machines Disabled 25 | . 2 . 1 1 . . 4 1 1 2 2 3 1 2 . 2 . 3 Max in Single Turn 1 | . 1 . 1 1 . . 1 1 1 1 1 1 1 1 . 1 . 1 Garrison Relay 8 | . . . . . . . . 1 . 2 . 3 . 2 . . . . Energy Cycler 1 | . . . . . . . . . . . . . . . . . . 1 Machines Sabotaged . | . . . . . . . . . . . . . . . . . . . Garrisons Compromised . | . . . . . . . . . . . . . . . . . . . Overloaded Fab Kills . | . . . . . . . . . . . . . . . . . . . Fab Network Shutdowns 1 | . . . . . . . . . . . . . 1 . . . . . Hacking | -11 -10 -10 -9 -9 -9 -8 -8 -8 -8 -8 -7 -7 -7 -7 -6 -6 -6 -6 --------- Run | Scr Mat Min Mat Min Exi Min Mat Gar Mat Gar Fac Gar Fac Gar Fac Gar Fac Ext Machines Accessed 53 | . 4 . 4 . 1 . 8 . 3 . 3 . 9 . 5 . 9 7 Terminals 31 | . 3 . 3 . . . 4 . 2 . 2 . 2 . 2 . 6 7 Fabricators 3 | . . . . . . . . . . . . . 1 . 1 . 1 . Repair Stations 9 | . 1 . . . . . 2 . . . . . 3 . 1 . 2 . Recycling Units . | . . . . . . . . . . . . . . . . . . . Scanalyzers 4 | . . . 1 . . . 1 . . . . . 2 . . . . . Garrison Access 5 | . . . . . . . 1 . 1 . 1 . 1 . 1 . . . Total Hacks 139 | . 11 . 12 . 2 . 21 . 7 . 5 . 24 . 16 . 19 22 Successful 71 | . 6 . 6 . 2 . 13 . 2 . 2 . 14 . 7 . 8 11 Failed 67 | . 5 . 6 . . . 8 . 5 . 3 . 10 . 8 . 11 11 Catastrophic 14 | . . . . . . . 2 . . . 2 . 2 . 2 . 4 2 Database Lockouts 1 | . . . . . . . . . . . . . . . 1 . . . Manual 40 | . 6 . 7 . . . 8 . 4 . 1 . 8 . 3 . 2 1 Terminals 88 | . 6 . 9 . . . 10 . 6 . 4 . 8 . 10 . 13 22 Fabricators 6 | . . . . . . . . . . . . . 1 . 3 . 2 . Repair Stations 24 | . 5 . . . . . 6 . . . . . 7 . 2 . 4 . Recycling Units . | . . . . . . . . . . . . . . . . . . . Scanalyzers 14 | . . . 3 . . . 4 . . . . . 7 . . . . . Garrison Access 5 | . . . . . . . 1 . 1 . 1 . 1 . 1 . . . Terminal Hacks 32 | . . . 1 . 2 . 4 . 1 . 1 . 2 . 5 . 5 11 Record 7 | . . . . . 2 . . . . . . . . . 3 . . 2 Part Schematic 1 | . . . . . . . . . . . . . . . 1 . . . Robot Analysis 1 | . . . . . . . . . . . . . . . . . 1 . Prototype ID Bank 3 | . . . . . . . 1 . . . . . . . . . . 2 Open Door 3 | . . . . . . . . . . . . . . . . . 1 2 Branch Access Points 3 | . . . 1 . . . 1 . . . . . . . . . 1 . Terminal Index 1 | . . . . . . . . . 1 . . . . . . . . . Alert Level 1 | . . . . . . . 1 . . . . . . . . . . . Unreport Threat 3 | . . . . . . . 1 . . . . . 2 . . . . . Locate Traps 4 | . . . . . . . . . . . 1 . . . 1 . 1 1 Patrol Status 1 | . . . . . . . . . . . . . . . . . . 1 Recall Reinforcements 2 | . . . . . . . . . . . . . . . . . 1 1 Registered Components 1 | . . . . . . . . . . . . . . . . . . 1 Zone Layout 1 | . . . . . . . . . . . . . . . . . . 1 Fabricator Hacks 2 | . . . . . . . . . . . . . 1 . 1 . . . Load Schematic 1 | . . . . . . . . . . . . . . . 1 . . . Build 1 | . . . . . . . . . . . . . 1 . . . . . Repair Station Hacks 17 | . 4 . . . . . 5 . . . . . 5 . . . 3 . Scan Component 10 | . 2 . . . . . 3 . . . . . 3 . . . 2 . Repair 7 | . 2 . . . . . 2 . . . . . 2 . . . 1 . Recycling Unit Hacks . | . . . . . . . . . . . . . . . . . . . Scanalyzer 9 | . . . 2 . . . 2 . . . . . 5 . . . . . Insert Component 5 | . . . 1 . . . 1 . . . . . 3 . . . . . Analyze 4 | . . . 1 . . . 1 . . . . . 2 . . . . . Garrison Access Hacks 5 | . . . . . . . 1 . 1 . 1 . 1 . 1 . . . Unlock Access 5 | . . . . . . . 1 . 1 . 1 . 1 . 1 . . . Unauthorized Hacks 6 | . 2 . 3 . . . 1 . . . . . . . . . . . Terminals 5 | . 2 . 2 . . . 1 . . . . . . . . . . . Assimilate 1 | . . . 1 . . . . . . . . . . . . . . . Botnet 3 | . 1 . 1 . . . 1 . . . . . . . . . . . Operators 1 | . 1 . . . . . . . . . . . . . . . . . Fabricators . | . . . . . . . . . . . . . . . . . . . Repair Stations . | . . . . . . . . . . . . . . . . . . . Recycling Units . | . . . . . . . . . . . . . . . . . . . Scanalyzers 1 | . . . 1 . . . . . . . . . . . . . . . Extract 1 | . . . 1 . . . . . . . . . . . . . . . Garrison Access . | . . . . . . . . . . . . . . . . . . . Data Cores Recovered 5 | . . . 2 . . . . . 1 . . . 1 . . . . 1 Used 1 | . . . . . . . . . 1 . . . . . . . . . Hacking Detections 48 | . 4 . 4 . . . 8 . 3 . 3 . 7 . 4 . 9 6 Full Trace Events 2 | . . . . . . . 1 . 1 . . . . . . . . . Feedback Events . | . . . . . . . . . . . . . . . . . . . Feedback Blocked . | . . . . . . . . . . . . . . . . . . . Robot Schematics Acquired . | . . . . . . . . . . . . . . . . . . . Robots Built 3 | . . . . . . . . . . . . . 3 . . . . . Matter 252 | . . . . . . . . . . . . . 252 . . . . . Time 67 | . . . . . . . . . . . . . 67 . . . . . Total Robot Build Rating 12 | . . . . . . . . . . . . . 12 . . . . . Part Schematics Acquired 7 | . . . 3 . . . 1 . . . . . 2 . 1 . . . Parts Built . | . . . . . . . . . . . . . . . . . . . Matter . | . . . . . . . . . . . . . . . . . . . Time . | . . . . . . . . . . . . . . . . . . . Total Part Build Rating . | . . . . . . . . . . . . . . . . . . . Parts Repaired 7 | . 2 . . . . . 2 . . . . . 2 . . . 1 . Time 312 | . 52 . . . . . 102 . . . . . 114 . . . 44 . Parts Recycled . | . . . . . . . . . . . . . . . . . . . Recycled Matter . | . . . . . . . . . . . . . . . . . . . Retrieved Matter . | . . . . . . . . . . . . . . . . . . . Retrieved Components . | . . . . . . . . . . . . . . . . . . . Parts Scanalyzed 4 | . . . 1 . . . 1 . . . . . 2 . . . . . Part Schematics Acquired 4 | . . . 1 . . . 1 . . . . . 2 . . . . . Parts Damaged . | . . . . . . . . . . . . . . . . . . . Bothacking | -11 -10 -10 -9 -9 -9 -8 -8 -8 -8 -8 -7 -7 -7 -7 -6 -6 -6 -6 ------------ Run | Scr Mat Min Mat Min Exi Min Mat Gar Mat Gar Fac Gar Fac Gar Fac Gar Fac Ext Used RIF Installer 5 | . . . . . . . . 1 . 1 . 1 . 1 . 1 . . Patrol Navigation 1 | . . . . . . . . . . . . 1 . . . . . . Watcher Feeds 1 | . . . . . . . . . . 1 . . . . . . . . Autooverride 1 | . . . . . . . . . . . . . . 1 . . . . Autoassimilate 1 | . . . . . . . . . . . . . . . . 1 . . Robots Hacked 48 | . . . . . . . . 2 1 5 6 12 . 7 9 3 . 3 Non-combat 3 | . . . . . . . . . . . 1 . . . 1 . . 1 Combat 45 | . . . . . . . . 2 1 5 5 12 . 7 8 3 . 2 Autooverrided 2 | . . . . . . . . . . . . . . . 1 . . 1 Robot Hacks Applied 49 | . . . . . . . . 2 1 5 6 14 . 7 9 3 . 2 no_distress 1 | . . . . . . . . . . . 1 . . . . . . . scatter_targeting 1 | . . . . . . . . . . . . 1 . . . . . . spike_heat 3 | . . . . . . . . . . . 1 1 . . 1 . . . disable_weapons 8 | . . . . . . . . 1 . . 1 2 . . 1 2 . 1 go_dormant 1 | . . . . . . . . . . . . . . . 1 . . . overwrite_iff 13 | . . . . . . . . . 1 2 . 5 . 3 2 . . . formatsys_low 2 | . . . . . . . . . . . . . . . 1 . . 1 formatsys_high 20 | . . . . . . . . 1 . 3 3 5 . 4 3 1 . . Relay Couplers Released 36 | . . . . . . . . 4 . 9 . 15 . 8 . . . . Machine Destruction 36 | . . . . . . . . 4 . 9 . 15 . 8 . . . . Attached 21 | . . . . . . . . 2 . 3 2 4 1 5 3 1 . . Robots Rewired 6 | . . . . . 2 . . . . . . . . . . . . 4 Allies Hacked 2 | . . . . . . . . . . . 2 . . . . . . . Hacks Repelled . | . . . . . . . . . . . . . . . . . . . Allies | -11 -10 -10 -9 -9 -9 -8 -8 -8 -8 -8 -7 -7 -7 -7 -6 -6 -6 -6 -------- Run | Scr Mat Min Mat Min Exi Min Mat Gar Mat Gar Fac Gar Fac Gar Fac Gar Fac Ext Total Allies 51 | . . 3 . 2 2 . . 1 1 5 3 10 3 7 7 1 . 6 Largest Group 5 | . . 3 3 2 2 2 . 1 2 3 3 2 3 2 3 1 . 5 Highest-Rated Group 156 | . . 40 40 42 29 29 . 15 31 55 64 36 60 32 87 41 . 156 Highest-Rated Ally 47 | . . 16 16 31 21 21 . 15 16 29 32 29 20 32 47 41 . 41 Total Orders 5 | . . . . . . . . . . . 2 . . . 3 . . . STAY 3 | . . . . . . . . . . . 1 . . . 2 . . . FOLLOW 2 | . . . . . . . . . . . 1 . . . 1 . . . Ally Attacks 251 | . . 24 39 . . 6 . 2 5 22 18 52 21 21 18 11 . 12 Total Damage 4308 | . . 281 376 . . 42 . 48 44 413 368 677 357 536 581 371 . 214 Kills 41 | . . 4 9 . . . . 1 1 4 4 5 2 4 1 3 . 3 Allies Corrupted 1 | . . . . 1 . . . . . . . . . . . . . . Allies Melted . | . . . . . . . . . . . . . . . . . . . Intel | -11 -10 -10 -9 -9 -9 -8 -8 -8 -8 -8 -7 -7 -7 -7 -6 -6 -6 -6 ------- Run | Scr Mat Min Mat Min Exi Min Mat Gar Mat Gar Fac Gar Fac Gar Fac Gar Fac Ext Robot Analysis Total 1 | . . . . . . . . . . . . . . . . . 1 . Derelict Logs Recovered 1 | . . . . 1 . . . . . . . . . . . . . . Drone Launches . | . . . . . . . . . . . . . . . . . . . Drone Recoveries . | . . . . . . . . . . . . . . . . . . . Exploration | -11 -10 -10 -9 -9 -9 -8 -8 -8 -8 -8 -7 -7 -7 -7 -6 -6 -6 -6 ------------- Run | Scr Mat Min Mat Min Exi Min Mat Gar Mat Gar Fac Gar Fac Gar Fac Gar Fac Ext Turns Passed 16694 | 143 1418 245 973 1698 1055 127 1081 778 112 621 634 786 901 871 1238 901 1197 1915 Spaces Moved 8380 | 65 594 135 490 666 586 80 523 429 61 350 331 352 382 430 591 462 686 1167 Core 210 | 4 . . . . . . . . . . . . . . . . . 206 Treads 7828 | 61 594 135 490 666 586 80 523 429 61 350 331 352 382 430 591 462 686 619 Legs 52 | . . . . . . . . . . . . . . . . . . 52 Wheels 290 | . . . . . . . . . . . . . . . . . . 290 Hover . | . . . . . . . . . . . . . . . . . . . Flight . | . . . . . . . . . . . . . . . . . . . Fastest Speed 50 | 50 160 160 160 160 160 160 145 145 152 152 160 170 170 160 160 160 160 50 Average Speed 158 | 153 160 160 160 172 168 160 152 151 152 158 162 170 170 164 160 164 161 132 Slowest Speed 800 | 160 160 160 160 180 180 160 160 165 152 160 170 170 190 190 180 180 180 800 Overloaded Moves . | . . . . . . . . . . . . . . . . . . . Propulsion Burnouts . | . . . . . . . . . . . . . . . . . . . Robots Hopped . | . . . . . . . . . . . . . . . . . . . Cave-ins Triggered . | . . . . . . . . . . . . . . . . . . . Exploration Rate (%) 43 | 7 69 38 36 77 90 24 55 78 9 52 8 57 13 59 15 68 18 52 Regions Visited 18 Branch Regions 5 Pre-discovered Areas 1 | . . . . . 1 . . . . . . . . . . . . . Known Exits Taken 7 | . . . 1 . . . 1 . 1 . 1 . 1 . 1 . 1 . Unknown Exits Taken 6 | 1 1 1 . 1 1 1 . . . . . . . . . . . . Scrap Searched 1 | . . 1 . . . . . . . . . . . . . . . . Spaces Dug 62 | . . . . 3 . . 1 . . . 5 . 1 . 3 2 . 47 Terrain Destroyed 646 | . 8 55 22 231 . . 33 15 . 20 7 4 1 . 4 105 17 124 Melee . | . . . . . . . . . . . . . . . . . . . Projectile 24 | . . . . 3 . . 2 . . 1 2 . 1 . 4 1 2 8 AOE 622 | . 8 55 22 228 . . 31 15 . 19 5 4 . . . 104 15 116 Terrain Rammed . | . . . . . . . . . . . . . . . . . . . Walls Destroyed . | . . . . . . . . . . . . . . . . . . . Machines Disabled . | . . . . . . . . . . . . . . . . . . . Actions | -11 -10 -10 -9 -9 -9 -8 -8 -8 -8 -8 -7 -7 -7 -7 -6 -6 -6 -6 --------- Run | Scr Mat Min Mat Min Exi Min Mat Gar Mat Gar Fac Gar Fac Gar Fac Gar Fac Ext Total 10893 | 85 952 153 603 1089 640 79 730 504 74 405 400 495 598 520 846 541 751 1428 Wait 1492 | . 289 6 34 331 3 . 119 12 10 20 17 87 193 26 179 16 42 108 Move 8358 | 64 593 135 489 665 585 79 522 427 60 348 330 350 381 428 590 460 685 1167 Hop . | . . . . . . . . . . . . . . . . . . . Pick Up 62 | 2 6 . 7 1 1 . 6 6 . 6 2 7 . 6 7 3 1 1 Fast Attach 94 | 8 3 1 9 6 6 . 6 1 . 3 8 . 5 4 10 3 2 19 Attach 37 | . . . . 2 . . 6 2 . 4 3 3 1 5 1 3 . 7 Detach 5 | . . . . 1 1 . 1 . . . 1 . . . 1 . . . Swap 95 | . 2 1 12 12 . . 12 11 . 3 6 4 2 1 11 7 5 6 Drop 90 | 1 2 1 14 2 5 . 9 6 . 6 11 3 . 3 16 2 2 7 Fire 499 | 10 57 9 38 69 . . 32 24 4 14 20 40 16 45 27 37 14 43 Melee 65 | . . . . . 16 . 17 14 . . . . . . . . . 18 Ram . | . . . . . . . . . . . . . . . . . . . Kick . | . . . . . . . . . . . . . . . . . . . Crush 1 | . . . . . . . . . . . . . . . 1 . . . Escape Stasis 8 | . . . . . . . . . . . . . . . . 8 . . Rewire 87 | . . . . . 23 . . 1 . 1 2 1 . 2 3 2 . 52 Trap . | . . . . . . . . . . . . . . . . . . . Miscellaneous . | . . . . . . . . . . . . . . . . . . . Route ------- -11/Scrapyard -10/Materials (discovered 3 exits: *Mat x2 / [*Min]) -10/Mines -9/Materials (discovered 2 exits: *Mat / *Min) -9/Mines (discovered 2 exits: *Mat / *Exi) -9/Exiles -8/Mines -8/Materials (discovered 2 exits: *Fac / Gar) -8/Garrison (discovered 3 exits: *Mat x3) -8/Materials -8/Garrison (discovered 2 exits: *Fac x2) -7/Factory (discovered 2 exits: [*Low] / Gar) -7/Garrison (discovered 2 exits: *Fac x2) -7/Factory (discovered 3 exits: *Fac / [*Low] / Gar) -7/Garrison (discovered 2 exits: *Fac x2) -6/Factory -6/Garrison (discovered 3 exits: *Fac x3) -6/Factory (discovered 5 exits: *Fac / Low x2 / *Ext x2) -6/Extension History --------- Turn | Location | Event 7 | -11/Scrapyard | Discovered new exit (range 15) 144 | -11/Scrapyard | Entered Materials 233 | -10/Materials | Discovered new exit (range 10) 315 | -10/Materials | Build established: Mutant 367 | -10/Materials | Destroyed 8 combat bots 524 | -10/Materials | Discovered new exit (range 8) 810 | -10/Materials | Discovered new exit (range 11) 1163 | -10/Materials | Repaired Lgt. Treads 1190 | -10/Materials | Repaired Lgt. Treads 1562 | -10/Materials | Entered Mines 1681 | -10/Mines | Assisted by bots powering up and referring to "LRC-V3" 1778 | -10/Mines | Discovered new exit (range 12) 1807 | -10/Mines | Entered Materials 1807 | -9/Materials | Accompanied by 3 allies 1807 | -9/Materials | Evolved 2 slots: Utility x2 1977 | -9/Materials | Identified exit to Mines 2293 | -9/Materials | Build established: Scavenger-Mutant 2461 | -9/Materials | Discovered new exit (range 5) 2780 | -9/Materials | Entered Mines 2842 | -9/Mines | Excavation squad dispatched 2842 | -9/Mines | A large section of the Mines collapsed 2912 | -9/Mines | Build established: Mutant 3092 | -9/Mines | Excavation squad dispatched 3342 | -9/Mines | Excavation squad dispatched 3465 | -9/Mines | Received a Rocket Launcher from a helpful Derelict 3558 | -9/Mines | Lost 3 parts (2n1u) 3592 | -9/Mines | Excavation squad dispatched 3633 | -9/Mines | Build established: Scavenger-Mutant 3841 | -9/Mines | Learned Materials interactive machine intel 3842 | -9/Mines | Excavation squad dispatched 4092 | -9/Mines | Excavation squad dispatched 4342 | -9/Mines | Excavation squad dispatched 4436 | -9/Mines | Discovered new exit (range 12) 4459 | -9/Mines | Discovered new exit (range 10) 4470 | -9/Mines | Deemed a non-threat by the Exiles lab entrance 4478 | -9/Mines | Entered Exiles 4478 | -9/Exiles | Found Exiles lab destroyed 5238 | -9/Exiles | Build established: Mutant 5427 | -9/Exiles | Learned location of Zion (-7) 5507 | -9/Exiles | Discovered new exit (range 14) 5533 | -9/Exiles | Entered Mines 5533 | -8/Mines | Accompanied by 2 allies 5617 | -8/Mines | Discovered new exit (range 14) 5660 | -8/Mines | Entered Materials 5660 | -8/Materials | Evolved 2 slots: Utility x1, Weapon x1 5661 | -8/Materials | Loaded intel: 19 interactive machine locations 5967 | -8/Materials | Build established: Scavenger-Mutant 6399 | -8/Materials | Repaired Adv. Beam Cannon 6420 | -8/Materials | Build established: Mutant 6545 | -8/Materials | Repaired Adv. Beam Cannon 6615 | -8/Materials | Discovered new exit (range 15) 6739 | -8/Materials | Identified exit to Garrison 6741 | -8/Materials | Entered Garrison 6772 | -8/Garrison | Triggered checkpoint 6820 | -8/Garrison | Triggered checkpoint 6864 | -8/Garrison | Triggered checkpoint 6875 | -8/Garrison | Lost 3 parts (1p1n1u) 6905 | -8/Garrison | Triggered checkpoint 6906 | -8/Garrison | Destroyed 8 combat bots 7044 | -8/Garrison | Discovered new exit (range 10) 7182 | -8/Garrison | Discovered new exit (range 10) 7345 | -8/Garrison | Discovered new exit (range 14) 7373 | -8/Garrison | Installed Relay Interface Framework 7414 | -8/Garrison | Triggered checkpoint 7445 | -8/Garrison | Garrison Relay disabled 7519 | -8/Garrison | Entered Materials 7519 | -8/Materials | Accompanied by 1 ally 7621 | -8/Materials | Identified exit to Garrison 7631 | -8/Materials | Entered Garrison 7631 | -8/Garrison | Accompanied by 1 ally 7676 | -8/Garrison | Triggered checkpoint 7708 | -8/Garrison | Lost 3 parts (3w) 7720 | -8/Garrison | Triggered checkpoint 7812 | -8/Garrison | Discovered new exit (range 10) 7925 | -8/Garrison | Discovered new exit (range 10) 7951 | -8/Garrison | Expanded RIF knowledge: Patrol Navigation 7977 | -8/Garrison | Build established: Scavenger-Mutant 7994 | -8/Garrison | Garrison Relay disabled 8008 | -8/Garrison | Triggered checkpoint 8162 | -8/Garrison | Triggered checkpoint 8184 | -8/Garrison | Garrison Relay disabled 8252 | -8/Garrison | Entered Factory 8252 | -7/Factory | Accompanied by 2 allies 8252 | -7/Factory | Evolved 2 slots: Utility x2 8311 | -7/Factory | Build established: Bothacker-Mutant 8341 | -7/Factory | Discovered new exit (range 8) 8718 | -7/Factory | Garrison activated, responded to threat 8884 | -7/Factory | Identified exit to Garrison 8886 | -7/Factory | Entered Garrison 8886 | -7/Garrison | Accompanied by 1 ally 8920 | -7/Garrison | Triggered checkpoint 8956 | -7/Garrison | Garrison Relay disabled 9070 | -7/Garrison | Triggered checkpoint 9206 | -7/Garrison | Triggered checkpoint 9226 | -7/Garrison | Garrison Relay disabled 9278 | -7/Garrison | Discovered new exit (range 10) 9308 | -7/Garrison | Expanded RIF knowledge: Watcher Feeds 9348 | -7/Garrison | Build established: Bothacker-Skirmisher 9484 | -7/Garrison | Discovered new exit (range 9) 9595 | -7/Garrison | Garrison Relay disabled 9672 | -7/Garrison | Entered Factory 9672 | -7/Factory | Accompanied by 2 allies 9888 | -7/Factory | Repaired Hvy. Deuterium Engine 10077 | -7/Factory | Local fabrication network quarantined 10121 | -7/Factory | Fabricated B-48 Gladiator (x3) 10227 | -7/Factory | Repaired Remote Datajack 10332 | -7/Factory | Discovered new exit (range 11) 10465 | -7/Factory | Discovered new exit (range 15) 10571 | -7/Factory | Identified exit to Garrison 10573 | -7/Factory | Entered Garrison 10654 | -7/Garrison | Triggered checkpoint 10755 | -7/Garrison | Garrison Relay disabled 10889 | -7/Garrison | Build established: Bothacker-Mutant 10916 | -7/Garrison | Lost 4 parts (1n2u1w) 10956 | -7/Garrison | Triggered checkpoint 11060 | -7/Garrison | Discovered new exit (range 14) 11068 | -7/Garrison | Triggered checkpoint 11161 | -7/Garrison | Garrison Relay disabled 11394 | -7/Garrison | Discovered new exit (range 14) 11433 | -7/Garrison | Expanded RIF knowledge: Autooverride 11444 | -7/Garrison | Entered Factory 11444 | -6/Factory | Evolved 2 slots: Utility x2 11735 | -6/Factory | Build established: Botlord-Mutant 11778 | -6/Factory | Central database locked down 12652 | -6/Factory | Spotted B-75 Beast 12677 | -6/Factory | Identified exit to Garrison 12682 | -6/Factory | Entered Garrison 12682 | -6/Garrison | Accompanied by 1 ally 12717 | -6/Garrison | P-60 Hacker assimilated allied Soldier 5a 12758 | -6/Garrison | Triggered checkpoint 12942 | -6/Garrison | Triggered checkpoint 12948 | -6/Garrison | Triggered checkpoint 13043 | -6/Garrison | Discovered new exit (range 15) 13189 | -6/Garrison | Triggered checkpoint 13367 | -6/Garrison | Discovered new exit (range 10) 13394 | -6/Garrison | Triggered checkpoint 13545 | -6/Garrison | Discovered new exit (range 9) 13572 | -6/Garrison | Expanded RIF knowledge: Autoassimilate 13583 | -6/Garrison | Entered Factory 13614 | -6/Factory | Identified exit to Lower Caves 13614 | -6/Factory | Identified exit to Extension 13692 | -6/Factory | Repaired Hvy. Rocket Launcher 14064 | -6/Factory | Build established: Mutant 14133 | -6/Factory | Discovered new exit (range 17) 14216 | -6/Factory | Identified exit to Factory 14780 | -6/Factory | Entered Extension 14828 | -6/Extension | Disrupted transfer network 14898 | -6/Extension | Energy Cycler disabled 14898 | -6/Extension | Rescued a captive Derelict 14898 | -6/Extension | Rescued a captive Derelict 14898 | -6/Extension | Rescued a captive Derelict 14898 | -6/Extension | Rescued a captive Derelict 14899 | -6/Extension | Rescued a captive Derelict 14901 | -6/Extension | Rescued a captive Derelict 14908 | -6/Extension | Rescued a captive Derelict 14928 | -6/Extension | Build established: Botlord-Mutant 15037 | -6/Extension | Lost 3 parts (2n1w) 15320 | -6/Extension | Lost 3 parts (1p1u1w) 15641 | -6/Extension | Build established: Bothacker-Assassin 15752 | -6/Extension | Spotted B-75 Beast 16040 | -6/Extension | Build established: Scavenger-Mutant 16084 | -6/Extension | Destroyed B-75 Beast 16121 | -6/Extension | Core integrity fell below 50% 16171 | -6/Extension | Spotted B-75 Beast 16212 | -6/Extension | Lost 15 parts (1p2n7u5w) 16473 | -6/Extension | Core integrity fell below 20% 16695 | -6/Extension | Destroyed by L-41 Fighter with Axe Last Messages --------------- 16594_ S=